[Event "*** SCC Grand Prix: Titled Tuesday Blitz"]
[Site "Chess.com"]
[Date "2020.09.08"]
[Round "3"]
[White "Th3_Hound"]
[Black "ItsCheckM8Mate"]
[Result "1-0"]
[WhiteElo "2603"]
[BlackElo "2319"]
[TimeControl "180+1"]
[EndTime "10:29:25 PDT"]
[Termination "Th3_Hound won on time"]

1. e4 {[%clk 0:03:00.9]} 1... e5 {[%clk 0:02:38.4]} 2. Nf3 {[%clk 0:03:00.8]}
2... Nc6 {[%clk 0:02:37.1]} 3. Bb5 {[%clk 0:03:00.8]} 3... g6 {[%clk 0:02:36]}
4. c3 {[%clk 0:02:58.5]} 4... a6 {[%clk 0:02:35.3]} 5. Ba4 {[%clk 0:02:58.3]}
5... Bg7 {[%clk 0:02:35]} 6. O-O {[%clk 0:02:58]} 6... Nge7 {[%clk 0:02:34.7]}
7. d4 {[%clk 0:02:57.7]} 7... exd4 {[%clk 0:02:34.6]} 8. cxd4 {[%clk 0:02:57.8]}
8... b5 {[%clk 0:02:35.1]} 9. Bc2 {[%clk 0:02:51.2]} 9... d5 {[%clk 0:02:32.5]}
10. e5 {[%clk 0:02:49.2]} 10... O-O {[%clk 0:02:31.2]} 11. h3 {[%clk 0:02:48.3]}
11... f6 {[%clk 0:02:17.6]} 12. exf6 {[%clk 0:02:47.9]} 12... Bxf6 {[%clk
0:02:17.3]} 13. Bh6 {[%clk 0:02:42.8]} 13... Bg7 {[%clk 0:02:11.5]} 14. Bxg7
{[%clk 0:02:41.9]} 14... Kxg7 {[%clk 0:02:12.4]} 15. Nbd2 {[%clk 0:02:39.5]}
15... Qd6 {[%clk 0:01:54.8]} 16. Nb3 {[%clk 0:02:34.9]} 16... a5 {[%clk
0:01:48]} 17. Re1 {[%clk 0:02:31.8]} 17... a4 {[%clk 0:01:37.5]} 18. Nc5 {[%clk
0:02:31.3]} 18... Kh8 {[%clk 0:01:05.5]} 19. Ne5 {[%clk 0:01:30]} 19... Qf6
{[%clk 0:00:47.3]} 20. Qd2 {[%clk 0:01:22]} 20... Nxe5 {[%clk 0:00:37.3]} 21.
dxe5 {[%clk 0:00:59.5]} 21... Qb6 {[%clk 0:00:34.2]} 22. Qd4 {[%clk 0:00:40.8]}
22... Be6 {[%clk 0:00:33.7]} 23. Nxe6 {[%clk 0:00:36.2]} 23... Qxe6 {[%clk
0:00:33.5]} 24. Rad1 {[%clk 0:00:36.5]} 24... c6 {[%clk 0:00:25.6]} 25. h4
{[%clk 0:00:35.3]} 25... Rf7 {[%clk 0:00:18.7]} 26. h5 {[%clk 0:00:35.2]} 26...
Raf8 {[%clk 0:00:17.3]} 27. hxg6 {[%clk 0:00:35.6]} 27... Nxg6 {[%clk
0:00:14.2]} 28. Rd2 {[%clk 0:00:35]} 28... Rf4 {[%clk 0:00:13.3]} 29. Qe3 {[%clk
0:00:34.2]} 29... Rg4 {[%clk 0:00:10.9]} 30. Qh3 {[%clk 0:00:32.2]} 30... Rf7
{[%clk 0:00:04.8]} 31. f3 {[%clk 0:00:31.9]} 31... Rxg2+ {[%clk 0:00:03]} 32.
Qxg2 {[%clk 0:00:30.1]} 32... Nf4 {[%clk 0:00:03.4]} 33. Qh2 {[%clk 0:00:27]}
33... Rg7+ {[%clk 0:00:03.2]} 34. Kh1 {[%clk 0:00:26.7]} 34... Rg5 {[%clk
0:00:02.5]} 35. Qxf4 {[%clk 0:00:25]} 35... Qh3+ {[%clk 0:00:02.5]} 36. Rh2
{[%clk 0:00:25.4]} 1-0

[Event "*** SCC Grand Prix: Titled Tuesday Blitz"]
[Site "Chess.com"]
[Date "2020.09.08"]
[Round "3"]
[White "vizumatv4hoda"]
[Black "Orest_Vovk"]
[Result "1-0"]
[WhiteElo "2750"]
[BlackElo "2489"]
[TimeControl "180+1"]
[EndTime "10:29:26 PDT"]
[Termination "vizumatv4hoda won on time"]

1. e4 {[%clk 0:02:59.7]} 1... g5 {[%clk 0:02:57.2]} 2. d4 {[%clk 0:02:59.1]}
2... g4 {[%clk 0:02:57]} 3. Nc3 {[%clk 0:02:43.5]} 3... Bg7 {[%clk 0:02:55.9]}
4. Be3 {[%clk 0:02:42.4]} 4... d6 {[%clk 0:02:51.8]} 5. Be2 {[%clk 0:02:42.2]}
5... h5 {[%clk 0:02:50.5]} 6. h3 {[%clk 0:02:41.7]} 6... Nf6 {[%clk 0:02:46.5]}
7. hxg4 {[%clk 0:02:39.6]} 7... Nxg4 {[%clk 0:02:37.7]} 8. Bxg4 {[%clk
0:02:33.9]} 8... hxg4 {[%clk 0:02:33.7]} 9. Rxh8+ {[%clk 0:02:33.1]} 9... Bxh8
{[%clk 0:02:34.6]} 10. Qd2 {[%clk 0:02:33.6]} 10... c6 {[%clk 0:02:27.8]} 11.
O-O-O {[%clk 0:02:34.1]} 11... Qa5 {[%clk 0:02:27]} 12. Kb1 {[%clk 0:02:31.3]}
12... Be6 {[%clk 0:02:25.9]} 13. Nge2 {[%clk 0:02:25.1]} 13... Nd7 {[%clk
0:02:10.6]} 14. Nf4 {[%clk 0:02:04.8]} 14... Nb6 {[%clk 0:01:35]} 15. Rh1 {[%clk
0:01:45.5]} 15... Kd7 {[%clk 0:01:26.5]} 16. Nxe6 {[%clk 0:01:35.3]} 16... fxe6
{[%clk 0:01:24.2]} 17. Qe2 {[%clk 0:01:36.2]} 17... c5 {[%clk 0:01:11.3]} 18.
dxc5 {[%clk 0:01:36.8]} 18... Bxc3 {[%clk 0:01:05.4]} 19. cxb6 {[%clk 0:01:35]}
19... Qb4 {[%clk 0:01:01.1]} 20. Bc1 {[%clk 0:01:31.6]} 20... axb6 {[%clk
0:00:57.1]} 21. Rh7 {[%clk 0:01:26.3]} 21... Rh8 {[%clk 0:00:32.6]} 22. a3
{[%clk 0:01:10.4]} 22... Qa5 {[%clk 0:00:18.8]} 23. Rxh8 {[%clk 0:01:10.6]}
23... Bxh8 {[%clk 0:00:18.3]} 24. Qxg4 {[%clk 0:01:11.2]} 24... Qe1 {[%clk
0:00:16]} 25. Qf3 {[%clk 0:01:05.1]} 25... Bd4 {[%clk 0:00:15]} 26. g4 {[%clk
0:01:05.3]} 26... Bxf2 {[%clk 0:00:10.6]} 27. g5 {[%clk 0:00:59.6]} 27... Bh4
{[%clk 0:00:10.4]} 28. Qg4 {[%clk 0:00:59.2]} 28... Qg3 {[%clk 0:00:09.5]} 29.
Qxg3 {[%clk 0:00:53.5]} 29... Bxg3 {[%clk 0:00:09.3]} 30. g6 {[%clk 0:00:54.3]}
30... Be5 {[%clk 0:00:08.9]} 31. b4 {[%clk 0:00:48.7]} 31... b5 {[%clk
0:00:08.3]} 32. Bb2 {[%clk 0:00:47.5]} 32... Bxb2 {[%clk 0:00:06.8]} 33. Kxb2
{[%clk 0:00:48.4]} 33... Ke8 {[%clk 0:00:06.9]} 34. c4 {[%clk 0:00:35.4]} 34...
bxc4 {[%clk 0:00:06.4]} 35. Kc3 {[%clk 0:00:36]} 35... Kf8 {[%clk 0:00:05.5]}
36. a4 {[%clk 0:00:33.4]} 36... Kg7 {[%clk 0:00:05]} 37. a5 {[%clk 0:00:31.2]}
37... Kxg6 {[%clk 0:00:04.9]} 38. b5 {[%clk 0:00:31.2]} 38... d5 {[%clk
0:00:05.3]} 39. exd5 {[%clk 0:00:30.6]} 39... exd5 {[%clk 0:00:06.2]} 40. a6
{[%clk 0:00:31]} 40... bxa6 {[%clk 0:00:06.9]} 41. bxa6 {[%clk 0:00:31.9]} 1-0

[Event "*** SCC Grand Prix: Titled Tuesday Blitz"]
[Site "Chess.com"]
[Date "2020.09.08"]
[Round "3"]
[White "ASVZ"]
[Black "ExcitingTrap"]
[Result "1-0"]
[WhiteElo "2518"]
[BlackElo "2292"]
[TimeControl "180+1"]
[EndTime "10:29:27 PDT"]
[Termination "ASVZ won by resignation"]

1. e4 {[%clk 0:03:00.9]} 1... e6 {[%clk 0:02:59.2]} 2. d4 {[%clk 0:03:00.9]}
2... d5 {[%clk 0:02:59.4]} 3. e5 {[%clk 0:03:01.5]} 3... c5 {[%clk 0:02:59.2]}
4. c3 {[%clk 0:03:02]} 4... Nc6 {[%clk 0:02:59.3]} 5. Be3 {[%clk 0:03:02.3]}
5... cxd4 {[%clk 0:02:53.1]} 6. cxd4 {[%clk 0:03:02.2]} 6... Qb6 {[%clk
0:02:52.1]} 7. Qd2 {[%clk 0:03:02.3]} 7... Nge7 {[%clk 0:02:49.7]} 8. Bd3 {[%clk
0:02:59.8]} 8... Nf5 {[%clk 0:02:48.6]} 9. Bxf5 {[%clk 0:03:00.2]} 9... exf5
{[%clk 0:02:49.5]} 10. Nc3 {[%clk 0:03:00.8]} 10... Be6 {[%clk 0:02:50]} 11.
Nge2 {[%clk 0:03:00.5]} 11... Be7 {[%clk 0:02:40.6]} 12. h4 {[%clk 0:02:57]}
12... Rc8 {[%clk 0:02:36]} 13. h5 {[%clk 0:02:56.9]} 13... Na5 {[%clk
0:02:34.3]} 14. b3 {[%clk 0:02:39.3]} 14... Bb4 {[%clk 0:02:31.2]} 15. Rc1
{[%clk 0:02:39.1]} 15... O-O {[%clk 0:02:25.3]} 16. h6 {[%clk 0:02:39.1]} 16...
g6 {[%clk 0:02:17.8]} 17. f3 {[%clk 0:02:27.3]} 17... Ba3 {[%clk 0:02:12.4]} 18.
Rc2 {[%clk 0:02:26.7]} 18... Nc6 {[%clk 0:02:12.7]} 19. Na4 {[%clk 0:02:23.7]}
19... Qb5 {[%clk 0:01:59.3]} 20. Kf2 {[%clk 0:02:17.9]} 20... Nb4 {[%clk
0:01:55.2]} 21. Rc5 {[%clk 0:02:17.4]} 21... Nd3+ {[%clk 0:01:53.2]} 22. Kg3
{[%clk 0:02:09.3]} 22... Nxc5 {[%clk 0:01:49.7]} 23. Nxc5 {[%clk 0:02:10.2]}
23... b6 {[%clk 0:01:45.7]} 24. Nd3 {[%clk 0:02:04.4]} 24... Rc7 {[%clk
0:01:38.7]} 25. Bf2 {[%clk 0:01:56.4]} 25... Rfc8 {[%clk 0:01:35]} 26. b4 {[%clk
0:01:52]} 26... Rc2 {[%clk 0:01:18.4]} 27. Qg5 {[%clk 0:01:51.8]} 27... Bxb4
{[%clk 0:01:18.4]} 28. Rb1 {[%clk 0:01:45]} 28... Qe8 {[%clk 0:01:12.4]} 29.
Rxb4 {[%clk 0:01:32.9]} 29... Rxe2 {[%clk 0:01:09.4]} 30. Nf4 {[%clk 0:01:26.1]}
30... Qf8 {[%clk 0:00:35.5]} 31. Ra4 {[%clk 0:01:14.9]} 31... Rec2 {[%clk
0:00:26.3]} 32. Rxa7 {[%clk 0:01:00.4]} 32... R2c7 {[%clk 0:00:26.4]} 33. Ra6
{[%clk 0:00:51.8]} 33... Rc6 {[%clk 0:00:24.4]} 34. Be1 {[%clk 0:00:43.6]} 34...
Qd8 {[%clk 0:00:22.5]} 35. Kh4 {[%clk 0:00:34.4]} 35... Qxg5+ {[%clk 0:00:19.4]}
36. Kxg5 {[%clk 0:00:35.3]} 36... Kf8 {[%clk 0:00:19.1]} 37. Bb4+ {[%clk
0:00:34]} 37... Ke8 {[%clk 0:00:18.8]} 38. Bd6 {[%clk 0:00:32.3]} 38... b5
{[%clk 0:00:14.4]} 39. Ra7 {[%clk 0:00:31.9]} 39... b4 {[%clk 0:00:11.3]} 40.
Nxe6 {[%clk 0:00:27.6]} 40... fxe6 {[%clk 0:00:11.1]} 41. Rxh7 {[%clk
0:00:28.5]} 41... Ra6 {[%clk 0:00:10]} 42. Kf6 {[%clk 0:00:27.7]} 42... Rxa2
{[%clk 0:00:08.1]} 43. Kxe6 {[%clk 0:00:28.1]} 1-0

[Event "*** SCC Grand Prix: Titled Tuesday Blitz"]
[Site "Chess.com"]
[Date "2020.09.08"]
[Round "3"]
[White "anon102030"]
[Black "Thereisnof0rk"]
[Result "1-0"]
[WhiteElo "2728"]
[BlackElo "2230"]
[TimeControl "180+1"]
[EndTime "10:29:30 PDT"]
[Termination "anon102030 won by checkmate"]

1. e4 {[%clk 0:03:00.9]} 1... c5 {[%clk 0:02:59.6]} 2. Nc3 {[%clk 0:02:59.4]}
2... Nc6 {[%clk 0:02:59.3]} 3. g3 {[%clk 0:02:59]} 3... g6 {[%clk 0:02:58.8]} 4.
Bg2 {[%clk 0:02:59.1]} 4... Bg7 {[%clk 0:02:59.4]} 5. d3 {[%clk 0:02:57.8]} 5...
d6 {[%clk 0:02:59.8]} 6. Be3 {[%clk 0:02:53.5]} 6... e5 {[%clk 0:02:59.7]} 7. f4
{[%clk 0:02:51.3]} 7... Nge7 {[%clk 0:02:54.7]} 8. Nf3 {[%clk 0:02:50.8]} 8...
O-O {[%clk 0:02:46]} 9. O-O {[%clk 0:02:50.9]} 9... b6 {[%clk 0:02:18.3]} 10.
Qd2 {[%clk 0:02:47.8]} 10... Bd7 {[%clk 0:02:03.7]} 11. Rf2 {[%clk 0:02:42.5]}
11... Nd4 {[%clk 0:01:54]} 12. Raf1 {[%clk 0:02:42]} 12... f6 {[%clk 0:01:46.6]}
13. f5 {[%clk 0:02:24.8]} 13... gxf5 {[%clk 0:01:44]} 14. Nh4 {[%clk 0:02:23.8]}
14... Bc6 {[%clk 0:01:11.5]} 15. exf5 {[%clk 0:02:05.7]} 15... Bxg2 {[%clk
0:01:09.9]} 16. Kxg2 {[%clk 0:02:06.2]} 16... d5 {[%clk 0:01:04.7]} 17. Qd1
{[%clk 0:01:56]} 17... Qe8 {[%clk 0:00:52.1]} 18. g4 {[%clk 0:01:49.1]} 18...
Ndc6 {[%clk 0:00:43.6]} 19. Bd2 {[%clk 0:01:47.4]} 19... a6 {[%clk 0:00:30]} 20.
g5 {[%clk 0:01:31.9]} 20... b5 {[%clk 0:00:29.9]} 21. Qg4 {[%clk 0:01:22.8]}
21... b4 {[%clk 0:00:26.4]} 22. Ne2 {[%clk 0:01:20.7]} 22... Nd4 {[%clk
0:00:24]} 23. Nxd4 {[%clk 0:01:17.4]} 23... cxd4 {[%clk 0:00:20.8]} 24. Bxb4
{[%clk 0:01:15.7]} 24... Rb8 {[%clk 0:00:20.6]} 25. Ba3 {[%clk 0:01:06.1]} 25...
Rb6 {[%clk 0:00:19.8]} 26. Re2 {[%clk 0:00:54]} 26... fxg5 {[%clk 0:00:13.8]}
27. Qxg5 {[%clk 0:00:52.7]} 27... Kh8 {[%clk 0:00:14.3]} 28. Qxe7 {[%clk
0:00:44.2]} 28... Qh5 {[%clk 0:00:14.4]} 29. Ref2 {[%clk 0:00:31.2]} 29... Rg8
{[%clk 0:00:14.4]} 30. Kh1 {[%clk 0:00:16.7]} 30... Rh6 {[%clk 0:00:13.1]} 31.
f6 {[%clk 0:00:14.6]} 31... Bf8 {[%clk 0:00:13.4]} 32. f7 {[%clk 0:00:10.3]}
32... Bxe7 {[%clk 0:00:06]} 33. fxg8=Q+ {[%clk 0:00:11.2]} 33... Kxg8 {[%clk
0:00:06.4]} 34. Bxe7 {[%clk 0:00:11.1]} 34... Re6 {[%clk 0:00:01.7]} 35. Rg2+
{[%clk 0:00:10.8]} 35... Kh8 {[%clk 0:00:01.6]} 36. Rf8# {[%clk 0:00:10.4]} 1-0

[Event "*** SCC Grand Prix: Titled Tuesday Blitz"]
[Site "Chess.com"]
[Date "2020.09.08"]
[Round "3"]
[White "ChronicUnhappiness"]
[Black "almo64"]
[Result "1-0"]
[WhiteElo "2446"]
[BlackElo "2715"]
[TimeControl "180+1"]
[EndTime "10:29:32 PDT"]
[Termination "ChronicUnhappiness won on time"]

1. c4 {[%clk 0:03:00.9]} 1... e6 {[%clk 0:02:57.4]} 2. d4 {[%clk 0:02:59.9]}
2... d5 {[%clk 0:02:57.7]} 3. Nf3 {[%clk 0:02:58]} 3... Nf6 {[%clk 0:02:57.4]}
4. cxd5 {[%clk 0:02:56.5]} 4... exd5 {[%clk 0:02:57.1]} 5. Bg5 {[%clk
0:02:56.4]} 5... h6 {[%clk 0:02:57]} 6. Bh4 {[%clk 0:02:53.5]} 6... g5 {[%clk
0:02:52.7]} 7. Bg3 {[%clk 0:02:52.7]} 7... Ne4 {[%clk 0:02:53]} 8. a3 {[%clk
0:02:21.9]} 8... Nc6 {[%clk 0:02:49.5]} 9. e3 {[%clk 0:02:21]} 9... Nxg3 {[%clk
0:02:42.4]} 10. hxg3 {[%clk 0:02:20.3]} 10... Bg7 {[%clk 0:02:35.1]} 11. Bd3
{[%clk 0:02:18.5]} 11... Qd6 {[%clk 0:02:34.2]} 12. Nc3 {[%clk 0:02:15.5]} 12...
Be6 {[%clk 0:02:34.3]} 13. Rc1 {[%clk 0:02:11]} 13... a6 {[%clk 0:02:23]} 14.
O-O {[%clk 0:01:36]} 14... O-O {[%clk 0:02:18.7]} 15. e4 {[%clk 0:01:27.6]}
15... g4 {[%clk 0:01:42.4]} 16. exd5 {[%clk 0:01:00.4]} 16... gxf3 {[%clk
0:01:27.9]} 17. dxe6 {[%clk 0:01:00]} 17... Nxd4 {[%clk 0:01:23.7]} 18. gxf3
{[%clk 0:00:44.2]} 18... fxe6 {[%clk 0:01:22.4]} 19. Be4 {[%clk 0:00:44.4]}
19... Rad8 {[%clk 0:01:11.5]} 20. f4 {[%clk 0:00:38.4]} 20... b5 {[%clk
0:00:52.1]} 21. Qh5 {[%clk 0:00:35.3]} 21... c5 {[%clk 0:00:51.7]} 22. Qg6
{[%clk 0:00:27.6]} 22... Rf6 {[%clk 0:00:50.8]} 23. Qg4 {[%clk 0:00:27.4]} 23...
h5 {[%clk 0:00:25.4]} 24. Qxh5 {[%clk 0:00:20.6]} 24... Rh6 {[%clk 0:00:24.9]}
25. Qg4 {[%clk 0:00:20.7]} 25... Kf7 {[%clk 0:00:19.1]} 26. Ne2 {[%clk
0:00:19.9]} 26... Rdh8 {[%clk 0:00:18.1]} 27. Nxd4 {[%clk 0:00:18.4]} 27... Qxd4
{[%clk 0:00:18.1]} 28. Rfe1 {[%clk 0:00:18.7]} 28... Rh2 {[%clk 0:00:11.4]} 29.
Rc2 {[%clk 0:00:08.2]} 29... Bf6 {[%clk 0:00:04.4]} 30. Bg6+ {[%clk 0:00:07]}
30... Kg7 {[%clk 0:00:04.6]} 31. Be4+ {[%clk 0:00:06.5]} 31... Kf8 {[%clk
0:00:04.8]} 32. Rce2 {[%clk 0:00:06.7]} 32... Ke7 {[%clk 0:00:01.9]} 33. Bf3
{[%clk 0:00:06.9]} 33... Kd8 {[%clk 0:00:01.2]} 34. Qxe6 {[%clk 0:00:04.6]} 1-0

[Event "*** SCC Grand Prix: Titled Tuesday Blitz"]
[Site "Chess.com"]
[Date "2020.09.08"]
[Round "3"]
[White "AldokhinIvan"]
[Black "Tenamu"]
[Result "1-0"]
[WhiteElo "2570"]
[BlackElo "2368"]
[TimeControl "180+1"]
[EndTime "10:29:33 PDT"]
[Termination "AldokhinIvan won on time"]

1. e4 {[%clk 0:03:00]} 1... e5 {[%clk 0:02:59]} 2. Nf3 {[%clk 0:03:00.3]} 2...
Nc6 {[%clk 0:02:56]} 3. Bb5 {[%clk 0:03:00.6]} 3... Nf6 {[%clk 0:02:54.7]} 4.
O-O {[%clk 0:03:00.3]} 4... Bc5 {[%clk 0:02:53.9]} 5. Nxe5 {[%clk 0:03:00]} 5...
Nxe4 {[%clk 0:02:52.4]} 6. Nd3 {[%clk 0:02:40.8]} 6... Bb6 {[%clk 0:02:23.3]} 7.
Re1 {[%clk 0:02:31.9]} 7... d5 {[%clk 0:02:21.5]} 8. Nc3 {[%clk 0:02:31.6]} 8...
Bf5 {[%clk 0:01:25.7]} 9. Qf3 {[%clk 0:02:24.9]} 9... Bg6 {[%clk 0:01:15.7]} 10.
Nxe4 {[%clk 0:01:37.7]} 10... dxe4 {[%clk 0:01:14.1]} 11. Rxe4+ {[%clk
0:01:31.7]} 11... Bxe4 {[%clk 0:01:15]} 12. Qxe4+ {[%clk 0:01:32.6]} 12... Kf8
{[%clk 0:01:14.3]} 13. Bxc6 {[%clk 0:01:30.4]} 13... bxc6 {[%clk 0:01:15.2]} 14.
Qxc6 {[%clk 0:01:25.9]} 14... Qe8 {[%clk 0:01:12.4]} 15. Qf3 {[%clk 0:01:12.5]}
15... Rd8 {[%clk 0:00:46.7]} 16. b3 {[%clk 0:01:12.1]} 16... Rxd3 {[%clk
0:00:36.5]} 17. Ba3+ {[%clk 0:01:11.8]} 17... Rd6 {[%clk 0:00:35.5]} 18. c4
{[%clk 0:01:07.6]} 18... c5 {[%clk 0:00:30.4]} 19. b4 {[%clk 0:01:07.9]} 19...
Rf6 {[%clk 0:00:19.3]} 20. Qg3 {[%clk 0:00:58.6]} 20... Re6 {[%clk 0:00:17.8]}
21. Rf1 {[%clk 0:00:52.1]} 21... Qc6 {[%clk 0:00:11.6]} 22. d4 {[%clk
0:00:46.4]} 22... Bc7 {[%clk 0:00:09.5]} 23. Qh3 {[%clk 0:00:40.9]} 23... Rh6
{[%clk 0:00:08.1]} 24. Qc8+ {[%clk 0:00:20.5]} 24... Ke7 {[%clk 0:00:07.9]} 25.
Re1+ {[%clk 0:00:20.8]} 25... Kf6 {[%clk 0:00:03.3]} 26. Qg4 {[%clk 0:00:19.8]}
26... Bxh2+ {[%clk 0:00:02.1]} 27. Kf1 {[%clk 0:00:19.5]} 27... Rg6 {[%clk
0:00:03]} 28. Qh4+ {[%clk 0:00:18.6]} 28... Rg5 {[%clk 0:00:03]} 29. d5 {[%clk
0:00:17.9]} 29... Qd6 {[%clk 0:00:03.2]} 30. Bb2+ {[%clk 0:00:18.1]} 30... Kg6
{[%clk 0:00:03.1]} 31. Qe4+ {[%clk 0:00:18.2]} 31... f5 {[%clk 0:00:02.7]} 32.
Qf3 {[%clk 0:00:16.1]} 32... Qf4 {[%clk 0:00:03]} 33. Re6+ {[%clk 0:00:15]}
33... Kf7 {[%clk 0:00:01.7]} 34. Qe2 {[%clk 0:00:15.3]} 1-0

[Event "*** SCC Grand Prix: Titled Tuesday Blitz"]
[Site "Chess.com"]
[Date "2020.09.08"]
[Round "3"]
[White "Grandelicious"]
[Black "aliba25"]
[Result "1-0"]
[WhiteElo "2802"]
[BlackElo "2566"]
[TimeControl "180+1"]
[EndTime "10:29:34 PDT"]
[Termination "Grandelicious won by checkmate"]

1. Nf3 {[%clk 0:03:00.9]} 1... Nf6 {[%clk 0:02:59.7]} 2. g3 {[%clk 0:03:00.7]}
2... g6 {[%clk 0:02:59.8]} 3. b3 {[%clk 0:02:59.8]} 3... Bg7 {[%clk 0:03:00.7]}
4. Bb2 {[%clk 0:03:00.4]} 4... O-O {[%clk 0:03:00.4]} 5. Bg2 {[%clk 0:03:00.4]}
5... a5 {[%clk 0:03:00.5]} 6. a3 {[%clk 0:02:57.9]} 6... d5 {[%clk 0:02:52.5]}
7. c4 {[%clk 0:02:50.7]} 7... c6 {[%clk 0:02:48.7]} 8. O-O {[%clk 0:02:46.6]}
8... Be6 {[%clk 0:02:41.2]} 9. d3 {[%clk 0:02:42.6]} 9... Na6 {[%clk 0:02:38]}
10. Nbd2 {[%clk 0:02:39.8]} 10... Qb6 {[%clk 0:02:21.9]} 11. Rb1 {[%clk
0:02:30.9]} 11... Rfd8 {[%clk 0:02:17.2]} 12. cxd5 {[%clk 0:02:01.5]} 12... cxd5
{[%clk 0:02:06.9]} 13. Bd4 {[%clk 0:01:54]} 13... Qd6 {[%clk 0:02:04.2]} 14. Qc1
{[%clk 0:01:53.7]} 14... Rac8 {[%clk 0:02:03]} 15. Qb2 {[%clk 0:01:53.8]} 15...
Ne8 {[%clk 0:01:58.1]} 16. Bxg7 {[%clk 0:01:47.4]} 16... Nxg7 {[%clk 0:01:59]}
17. b4 {[%clk 0:01:25.4]} 17... axb4 {[%clk 0:01:55.3]} 18. axb4 {[%clk
0:01:26.3]} 18... Bg4 {[%clk 0:01:51.1]} 19. h3 {[%clk 0:01:21.2]} 19... Bxf3
{[%clk 0:01:50.9]} 20. Nxf3 {[%clk 0:01:22.1]} 20... Nf5 {[%clk 0:01:35.9]} 21.
h4 {[%clk 0:01:14.1]} 21... h6 {[%clk 0:01:32.8]} 22. Bh3 {[%clk 0:01:08.3]}
22... d4 {[%clk 0:01:25.2]} 23. h5 {[%clk 0:00:55.5]} 23... Rc3 {[%clk
0:01:18.5]} 24. Qd2 {[%clk 0:00:45.1]} 24... Kg7 {[%clk 0:01:11.2]} 25. hxg6
{[%clk 0:00:41.4]} 25... fxg6 {[%clk 0:01:10.3]} 26. Bxf5 {[%clk 0:00:39.7]}
26... gxf5 {[%clk 0:01:09.2]} 27. b5 {[%clk 0:00:29.6]} 27... Nc5 {[%clk
0:01:06.2]} 28. Kg2 {[%clk 0:00:26.5]} 28... Ne6 {[%clk 0:00:57.4]} 29. Rh1
{[%clk 0:00:23.4]} 29... f4 {[%clk 0:00:54.9]} 30. Rh4 {[%clk 0:00:21.7]} 30...
Rdc8 {[%clk 0:00:46.5]} 31. Rg4+ {[%clk 0:00:21.9]} 31... Kh7 {[%clk 0:00:42.1]}
32. Rh1 {[%clk 0:00:16.5]} 32... Rc2 {[%clk 0:00:40.7]} 33. Qd1 {[%clk
0:00:15.9]} 33... Qd5 {[%clk 0:00:32.5]} 34. Rxh6+ {[%clk 0:00:14.1]} 34... Kxh6
{[%clk 0:00:32.3]} 35. Qh1+ {[%clk 0:00:15]} 35... Qh5 {[%clk 0:00:30.8]} 36.
Rh4 {[%clk 0:00:15.7]} 36... Qxh4 {[%clk 0:00:25.8]} 37. Qxh4+ {[%clk
0:00:16.6]} 37... Kg6 {[%clk 0:00:26.7]} 38. gxf4 {[%clk 0:00:10.7]} 38... Rxe2
{[%clk 0:00:20.7]} 39. Ne5+ {[%clk 0:00:10.7]} 39... Kf5 {[%clk 0:00:15.2]} 40.
Qg4+ {[%clk 0:00:09.2]} 40... Kf6 {[%clk 0:00:15.4]} 41. Qg6# {[%clk 0:00:09.9]}
1-0

[Event "*** SCC Grand Prix: Titled Tuesday Blitz"]
[Site "Chess.com"]
[Date "2020.09.08"]
[Round "3"]
[White "gumimis"]
[Black "ChessPromotionAlex"]
[Result "0-1"]
[WhiteElo "2210"]
[BlackElo "2494"]
[TimeControl "180+1"]
[EndTime "10:29:34 PDT"]
[Termination "ChessPromotionAlex won on time"]

1. e4 {[%clk 0:03:00.6]} 1... c5 {[%clk 0:02:59.5]} 2. Nf3 {[%clk 0:03:00.8]}
2... d6 {[%clk 0:02:59.8]} 3. d4 {[%clk 0:03:01.3]} 3... cxd4 {[%clk 0:03:00.7]}
4. Nxd4 {[%clk 0:03:02.1]} 4... Nf6 {[%clk 0:03:00.8]} 5. Nc3 {[%clk 0:03:02.6]}
5... a6 {[%clk 0:03:01.2]} 6. Bg5 {[%clk 0:03:02.4]} 6... e6 {[%clk 0:03:01.6]}
7. f4 {[%clk 0:03:02.8]} 7... Qc7 {[%clk 0:03:01.4]} 8. Qf3 {[%clk 0:03:02.5]}
8... b5 {[%clk 0:03:01.6]} 9. O-O-O {[%clk 0:03:00.1]} 9... b4 {[%clk
0:03:01.3]} 10. Nd5 {[%clk 0:02:52.6]} 10... exd5 {[%clk 0:03:00.3]} 11. exd5
{[%clk 0:02:53.5]} 11... Be7 {[%clk 0:02:54.5]} 12. Bd3 {[%clk 0:02:38.3]} 12...
Qa5 {[%clk 0:02:23.1]} 13. Rhe1 {[%clk 0:02:27.9]} 13... Ra7 {[%clk 0:02:09]}
14. Bf5 {[%clk 0:01:53.9]} 14... Qc5 {[%clk 0:01:47.2]} 15. Bxf6 {[%clk
0:01:31.5]} 15... gxf6 {[%clk 0:01:44.9]} 16. Qh3 {[%clk 0:00:20]} 16... Rc7
{[%clk 0:01:36.8]} 17. Re2 {[%clk 0:00:17.5]} 17... Kd8 {[%clk 0:01:29.4]} 18.
Bxc8 {[%clk 0:00:13.8]} 18... Rxc8 {[%clk 0:01:29.2]} 19. Nf5 {[%clk 0:00:10.4]}
19... Rc7 {[%clk 0:01:26.5]} 20. Rde1 {[%clk 0:00:08.3]} 20... Re8 {[%clk
0:01:08.1]} 21. Qxh7 {[%clk 0:00:08.6]} 21... Qxd5 {[%clk 0:01:06.9]} 22. Ng7
{[%clk 0:00:06.9]} 22... Rf8 {[%clk 0:01:00.8]} 23. Qh3 {[%clk 0:00:05.8]} 23...
Qxa2 {[%clk 0:00:55.6]} 24. Nf5 {[%clk 0:00:04.7]} 24... Nc6 {[%clk 0:00:51.4]}
25. Qd3 {[%clk 0:00:02.8]} 25... Qa1+ {[%clk 0:00:47.8]} 26. Kd2 {[%clk
0:00:02.9]} 26... Qxb2 {[%clk 0:00:48.1]} 27. Nxe7 {[%clk 0:00:03]} 27... Qc3+
{[%clk 0:00:47.1]} 28. Qxc3 {[%clk 0:00:03]} 28... bxc3+ {[%clk 0:00:48]} 29.
Kxc3 {[%clk 0:00:01.6]} 29... Nxe7+ {[%clk 0:00:47.1]} 30. Kd4 {[%clk
0:00:02.5]} 30... Nf5+ {[%clk 0:00:45.1]} 31. Kd5 {[%clk 0:00:03.4]} 31... Rc5+
{[%clk 0:00:43.6]} 32. Ke4 {[%clk 0:00:02.9]} 32... Re8+ {[%clk 0:00:43.5]} 33.
Kd3 {[%clk 0:00:03]} 33... Rd5+ {[%clk 0:00:42.6]} 34. Kc4 {[%clk 0:00:03.5]}
34... Rd4+ {[%clk 0:00:41.6]} 35. Kc3 {[%clk 0:00:03.2]} 35... Rxe2 {[%clk
0:00:41.5]} 36. Rxe2 {[%clk 0:00:03.9]} 36... Rxf4 {[%clk 0:00:42]} 37. Rd2
{[%clk 0:00:02.9]} 37... Kd7 {[%clk 0:00:41.4]} 38. Rd5 {[%clk 0:00:02.8]} 38...
Rf2 {[%clk 0:00:37.7]} 39. Ra5 {[%clk 0:00:03]} 39... Ne3 {[%clk 0:00:36.7]} 40.
Rxa6 {[%clk 0:00:02]} 40... Rxg2 {[%clk 0:00:36.6]} 41. Kd3 {[%clk 0:00:02.3]}
41... Nxc2 {[%clk 0:00:35.9]} 42. h4 {[%clk 0:00:02]} 42... Nb4+ {[%clk
0:00:35.3]} 43. Ke3 {[%clk 0:00:02.4]} 43... Nxa6 {[%clk 0:00:36.2]} 0-1